fUST/lending_fUST_20260114
["ID","MTS","AMOUNT","RATE_DAILY","PERIOD"]
[401804322,1768379458304,-505.094065,0.0002904,7]
[401804324,1768379458314,-505.094065,0.0002904,7]
[401804326,1768379458323,-505.094065,0.0002904,7]
[401804328,1768379458334,-505.094065,0.0002904,7]
[401804330,1768379458344,-151.0,0.0002904,7]
[401804332,1768379458353,-218.78,0.0002904,7]
[401804334,1768379458364,-450.0,0.00029041,5]
[401804336,1768379458375,-950.0,0.00029041,5]
[401804338,1768379458384,-450.0,0.00029041,5]
[401804340,1768379458393,-151.0,0.00029048,7]
[401804342,1768379458402,-151.0,0.00029048,7]
[401804344,1768379458412,-165.615125,0.00029048,7]
[401804346,1768379458421,-180.50802,0.00029048,7]
[401804348,1768379458430,-151.0,0.00029048,7]
[401804350,1768379458439,-151.0,0.00029048,7]
[401804351,1768379458448,-151.0,0.00029048,7]
[401804353,1768379458457,-151.0,0.00029048,7]
[401804355,1768379458466,-151.0,0.00029048,7]
[401804357,1768379458475,-151.0,0.00029048,7]
[401804359,1768379458484,-151.0,0.00029048,7]
[401804361,1768379458493,-151.0,0.00029048,7]
[401804363,1768379458503,-176.527375,0.00029048,7]
[401804366,1768379458512,-151.0,0.00029048,7]
[401804367,1768379458521,-151.0,0.00029048,7]
[401804370,1768379458530,-697.474609,0.00029048,3]
[401804371,1768379458540,-697.474609,0.00029048,3]
[401804374,1768379458548,-697.474609,0.00029048,3]
[401804375,1768379458557,-697.474609,0.00029048,3]
[401804377,1768379458567,-490.347103,0.00029048,7]
[401804379,1768379458576,-490.347103,0.00029048,7]
[401804381,1768379458585,-490.347103,0.00029048,7]
[401804383,1768379458594,-490.347103,0.00029048,7]
[401804385,1768379458603,-38000.0,0.00029048,10]
[401804387,1768379458613,-38000.0,0.00029057,10]
[401804389,1768379458622,-14150.53090947,0.00029061,2]
[401804392,1768379458632,-4046.54,0.000291,14]
[401804394,1768379458641,-1299.1,0.000291,2]
[401804396,1768379458651,-2916.3971575,0.00029165,2]
[401804398,1768379458661,-800.0,0.0002917,2]
[401804400,1768379458670,-253.24,0.000292,7]
[401804402,1768379458679,-267.88,0.000292,7]
[401804404,1768379458688,-160.0,0.00029289,7]
[401804406,1768379458697,-2854.31,0.00029315,6]
[401804408,1768379458707,-2916.3971575,0.00029317,2]
[401804410,1768379458716,-800.0,0.00029346,2]
[401804412,1768379458725,-40340.44,0.000294,2]
[401804414,1768379458734,-159.0,0.00029425,34]
[401804416,1768379458743,-167.12486556,0.00029441,5]
[401804418,1768379458753,-2000.0,0.00029479,7]
[401804420,1768379458761,-800.0,0.00029511,2]
[401804422,1768379458771,-3001.67932054,0.00029513,2]
[401804424,1768379458780,-1060.1,0.00029575,7]
[401804426,1768379458789,-656.01795132,0.00029589,5]
[401804428,1768379458799,-550.0,0.00029589,5]
[401804430,1768379458808,-550.0,0.00029589,5]
[401804432,1768379458818,-197.32771642,0.00029595,4]
[401804434,1768379458827,-1299.1,0.000296,2]
[401804436,1768379458837,-508.66826773,0.00029604,5]
[401804438,1768379458845,-1826.54363292,0.00029705,2]
[401804452,1768379458966,-151.0,0.0001,2]
[401804454,1768379458976,-320.15549487,0.00029705,2]
[401804514,1768379459570,-3e-08,0.0001,2]
[401804597,1768379460394,-127.5612449,0.0001,2]
[401804627,1768379460688,-23.43875507,0.0001,2]
[401804629,1768379460699,-151.0,0.0001,2]
[401804631,1768379460708,-125.56124493,0.0001,2]
[401804717,1768379461814,-25.43875507,0.0001,2]
[401804719,1768379461824,-151.0,0.0001,2]
[401804721,1768379461833,-133.29124493,0.0001,2]
[401805303,1768379468439,210.65,6.604e-05,2]
[401805314,1768379468854,280.86,6.892e-05,2]
[401805321,1768379469285,351.08,7.179e-05,2]
[401805330,1768379470383,421.29,7.466e-05,2]
[401805356,1768379470796,491.51,7.753e-05,2]
[401805357,1768379471197,561.72,8.04e-05,2]
[401805358,1768379471614,631.94,8.327e-05,2]
[401805359,1768379472212,702.15,8.614e-05,2]
[401806855,1768379497280,2678.0,0.00030137,120]
[401811040,1768379540999,5435.0,0.00030137,120]
[401811218,1768379542799,191.12,7.44e-05,2]
[401811252,1768379543205,286.68,7.778e-05,2]
[401811295,1768379543615,382.24,8.116e-05,2]
[401811339,1768379544034,477.8,8.454e-05,2]
[401811381,1768379544436,573.37,8.793e-05,2]
[401811425,1768379544835,668.93,9.131e-05,2]
[401811469,1768379545241,764.49,9.469e-05,2]
[401811933,1768379619340,223.92,6.984e-05,2]
[401811934,1768379619760,298.55,7.288e-05,2]
[401811935,1768379620175,373.19,7.592e-05,2]
[401811936,1768379620581,447.83,7.895e-05,2]
[401811937,1768379621009,522.47,8.199e-05,2]
[401811938,1768379621424,597.11,8.503e-05,2]
[401811939,1768379621848,671.75,8.806e-05,2]
[401811940,1768379622304,746.39,9.11e-05,2]
[401811941,1768379638946,161.0,8.3e-07,2]
[401811942,1768379639989,161.0,8.3e-07,2]
[401811943,1768379641038,161.0,8.3e-07,2]
[401811944,1768379642170,161.0,8.3e-07,2]
[401811945,1768379643246,161.0,8.3e-07,2]
[401811946,1768379644373,161.0,8.3e-07,2]
[401811947,1768379645437,161.0,8.3e-07,2]
[401811948,1768379646554,161.0,8.3e-07,2]
[401811949,1768379671395,-178.822,9.667e-05,2]
[401811950,1768379671431,-394.69489606,9.737e-05,2]
[401811951,1768379675726,-172.74084344,9.737e-05,2]
[401811952,1768379693859,158.78,8.541e-05,2]
[401811953,1768379694261,190.54,8.883e-05,2]
[401811954,1768379694675,222.3,9.224e-05,2]
[401811955,1768379695110,254.05,9.566e-05,2]
[401811956,1768379731406,-49.93464098,9.737e-05,2]
[401811957,1768379745977,-1200.0,9.863e-05,2]
[401811958,1768379746005,-300.0,9.863e-05,2]
[401811959,1768379746032,-300.0,9.863e-05,2]
[401811960,1768379761870,-6749.44783781,9.864e-05,2]
[401811961,1768379761885,-10000.01,9.864e-05,2]
[401811962,1768379761899,-10000.01,9.864e-05,2]
[401811963,1768379761950,-10000.01,9.864e-05,2]
[401811964,1768379762008,-10000.01,9.864e-05,2]
[401811965,1768379762269,209.4,7.689e-05,2]
[401811966,1768379762572,300.0,9.863e-05,2]
[401811967,1768379762729,279.2,8.023e-05,2]
[401811968,1768379763144,349.0,8.357e-05,2]
[401811969,1768379763541,418.8,8.692e-05,2]
[401811970,1768379763962,488.6,9.026e-05,2]
[401811971,1768379764342,-9490.61,9.864e-05,2]
[401811972,1768379764425,558.4,9.36e-05,2]
[401811973,1768379764462,-10000.01,9.864e-05,2]
[401811974,1768379768167,-234.34,9.694e-05,2]
[401811975,1768379771248,-300.0,9.694e-05,2]
[401811977,1768379828915,-93.86,9.694e-05,2]
[401811980,1768379835793,153.35,8.508e-05,2]
[401811981,1768379836244,191.68,8.863e-05,2]
[401811982,1768379836662,230.02,9.217e-05,2]
[401811983,1768379837065,268.36,9.572e-05,2]
[401811984,1768379844111,-9156.6,9.864e-05,2]
[401811985,1768379844274,-10000.01,9.864e-05,2]
[401811986,1768379844482,-10000.01,9.864e-05,2]
[401811987,1768379844611,-10000.01,9.864e-05,2]
[401811988,1768379844731,-10000.01,9.864e-05,2]
[401811989,1768379844879,-10000.01,9.864e-05,2]
[401811990,1768379845079,-10000.01,9.864e-05,2]
[401811991,1768379847171,-10000.01,9.864e-05,2]
[401811992,1768379879733,209.66,8.238e-05,2]
[401811993,1768379879911,209.66,8.238e-05,2]
[401811994,1768379880172,209.66,8.238e-05,2]
[401811998,1768379906552,176.6,9.47e-05,2]
[401811999,1768379927899,502.9979,0.00030137,120]
[401812001,1768379978731,186.99,8.839e-05,2]
[401812002,1768379979136,233.74,9.207e-05,2]
[401812003,1768379983278,-180.70097665,9.575e-05,2]
[401812006,1768380002415,1022.67,5e-05,2]
[401812007,1768380002734,1022.67,5.5e-05,2]
[401812008,1768380003084,1022.67,6e-05,2]
[401812009,1768380003223,-99.78902335,9.575e-05,2]
[401812010,1768380003248,-77.36928977,9.637e-05,2]
[401812011,1768380003381,1022.67,6.5e-05,2]
[401812012,1768380003876,1022.67,7.1e-05,2]
[401812013,1768380004008,1022.67,7.6e-05,2]
[401812014,1768380004953,1022.67,8.1e-05,2]
[401812015,1768380005199,-250.30188918,9.575e-05,2]
[401812016,1768380005312,1022.67,8.6e-05,2]
[401812017,1768380005621,1022.67,9.1e-05,2]
[401812018,1768380007989,-165.14753977,9.575e-05,2]
[401812020,1768380011391,-138.55057105,9.575e-05,2]
[401812021,1768380011420,-583.41343395,9.6e-05,2]
[401812022,1768380016043,-313.37396987,9.6e-05,2]
[401812023,1768380017530,-125.88259618,9.6e-05,2]
[401812024,1768380017554,-353.12253837,9.637e-05,2]
[401812025,1768380019652,-264.66431513,9.637e-05,2]
[401812026,1768380021841,-214.97458752,9.637e-05,2]
[401812027,1768380028270,198.65,9.5e-05,2]
[401812028,1768380028291,1137.48017765,9.5e-05,2]
[401812029,1768380034056,-100.89031184,9.637e-05,2]
[401812030,1768380049229,-300.0,9.863e-05,2]
[401812031,1768380049274,-1200.0,9.863e-05,2]
[401812032,1768380049304,-300.0,9.863e-05,2]
[401812033,1768380049617,176.47,7.474e-05,2]
[401812034,1768380050012,264.7,7.814e-05,2]
[401812035,1768380050422,352.94,8.153e-05,2]
[401812036,1768380050808,441.17,8.493e-05,2]
[401812037,1768380051205,529.41,8.833e-05,2]
[401812038,1768380051823,617.64,9.173e-05,2]
[401812039,1768380052043,705.88,9.512e-05,2]
[401812040,1768380052465,794.11,9.852e-05,2]
[401812041,1768380062006,2517.69,8.943e-05,2]
[401812042,1768380062028,10000.01,8.943e-05,2]
[401812043,1768380062049,10000.01,8.943e-05,2]
[401812044,1768380062072,10000.01,8.943e-05,2]
[401812045,1768380062092,5553.6169758,8.943e-05,2]
[401812046,1768380064492,-674.45788502,9.863e-05,2]
[401812047,1768380069613,8651.09422996,9.863e-05,2]
[401812048,1768380069634,10000.01,9.863e-05,2]
[401812049,1768380069654,10000.01,9.863e-05,2]
[401812050,1768380069675,10000.01,9.863e-05,2]
[401812051,1768380069695,10000.01,9.863e-05,2]
[401812052,1768380069715,10000.01,9.863e-05,2]
[401812053,1768380069736,10000.01,9.863e-05,2]
[401812054,1768380069756,10000.01,9.863e-05,2]
[401812055,1768380069777,10000.01,9.863e-05,2]
[401812056,1768380069798,10000.01,9.863e-05,2]
[401812058,1768380092235,-7628.84861659,9.863e-05,2]
[401812059,1768380092338,-10000.01,9.863e-05,2]
[401812060,1768380092448,-10000.01,9.863e-05,2]
[401812061,1768380092596,-10000.01,9.863e-05,2]
[401812062,1768380092703,-10000.01,9.863e-05,2]
[401812063,1768380092823,-10000.01,9.863e-05,2]
[401812064,1768380095605,-10000.01,9.863e-05,2]
[401812065,1768380095723,-10000.01,9.863e-05,2]
[401812066,1768380109560,1975.12718721,0.00030137,120]
[401812067,1768380123777,509.37,7.029e-05,2]
[401812068,1768380124684,1018.73,7.364e-05,2]
[401812069,1768380125173,1528.1,7.698e-05,2]
[401812070,1768380125568,2037.47,8.033e-05,2]
[401812071,1768380126140,2546.83,8.368e-05,2]
[401812072,1768380126706,2359.51,8.703e-05,2]
[401812073,1768380126732,696.69,8.703e-05,2]
[401812074,1768380126950,3565.56,9.037e-05,2]
[401812075,1768380127363,4074.93,9.372e-05,2]
[401812076,1768380153285,-178.822,9.667e-05,2]
[401812077,1768380153918,-198.15353094,9.707e-05,2]
[401812078,1768380156248,-167.76299502,9.707e-05,2]
[401812079,1768380168534,-4218.38347404,9.707e-05,2]
[401812080,1768380183367,10012.02083779,0.00030137,120]
[401812081,1768380185513,-500.0,9.863e-05,2]
[401812082,1768380185543,-500.0,9.863e-05,2]
[401812083,1768380185577,-500.0,9.863e-05,2]
[401812084,1768380194056,500.0,9.863e-05,2]
[401812085,1768380194105,500.0,9.863e-05,2]
[401812086,1768380194161,500.0,9.863e-05,2]
[401812087,1768380196541,500.0,9.863e-05,2]
[401812088,1768380196594,500.0,9.863e-05,2]
[401812089,1768380196632,500.0,9.863e-05,2]
[401812090,1768380196673,500.0,9.863e-05,2]
[401812091,1768380196711,500.0,9.863e-05,2]
[401812092,1768380196755,500.0,9.863e-05,2]
[401812093,1768380196792,500.0,9.863e-05,2]
[401812094,1768380196831,500.0,9.863e-05,2]
[401812095,1768380196870,500.0,9.863e-05,2]
[401812096,1768380196931,500.0,0.0003013,120]
[401812097,1768380196973,500.0,9.863e-05,2]
[401812098,1768380197016,500.0,9.863e-05,2]
[401812099,1768380197066,0.01,9.863e-05,2]
[401812100,1768380197090,499.99,9.863e-05,2]
[401812101,1768380197137,500.0,9.863e-05,2]
[401812102,1768380197178,187.51413896,9.863e-05,2]
[401812103,1768380197210,500.0,9.863e-05,2]
[401812104,1768380197241,500.0,9.863e-05,2]
[401812105,1768380197273,500.0,9.863e-05,2]
[401812106,1768380197305,500.0,9.863e-05,2]
[401812107,1768380197335,500.0,9.863e-05,2]
[401812108,1768380197372,500.0,9.863e-05,2]
[401812109,1768380197408,500.0,9.863e-05,2]
[401812110,1768380197442,500.0,9.863e-05,2]
[401812111,1768380197480,500.0,9.863e-05,2]
[401812112,1768380197513,500.0,9.863e-05,2]
[401812113,1768380197544,500.0,9.863e-05,2]
[401812114,1768380197579,500.0,9.863e-05,2]
[401812115,1768380197613,500.0,9.863e-05,2]
[401812116,1768380197648,500.0,9.863e-05,2]
[401812117,1768380197683,500.0,9.863e-05,2]
[401812118,1768380198048,324.03851433,0.0003013,120]
[401812119,1768380201468,217.64,6.948e-05,2]
[401812120,1768380201805,435.28,7.279e-05,2]
[401812121,1768380202043,-5322.41586104,9.863e-05,2]
[401812122,1768380202133,652.92,7.609e-05,2]
[401812123,1768380202535,6.66586104,7.94e-05,2]
[401812124,1768380202558,863.88413896,7.94e-05,2]
[401812125,1768380202977,1088.19,8.271e-05,2]
[401812126,1768380203412,1305.83,8.602e-05,2]
[401812127,1768380203827,1523.47,8.933e-05,2]
[401812128,1768380204248,1741.11,9.264e-05,2]
[401812129,1768380208337,-1958.75,9.595e-05,2]
[401812130,1768380208395,-4559.04,9.863e-05,2]
[401812131,1768380208460,-1625.21156279,9.863e-05,2]
[401812132,1768380208614,-6749.58687442,9.863e-05,2]
[401812133,1768380208667,-300.0,9.863e-05,2]
[401812134,1768380230142,-567.56557986,9.863e-05,2]
[401812135,1768380230179,-500.0,9.863e-05,2]
[401812136,1768380230218,-500.0,9.863e-05,2]
[401812137,1768380232919,500.0,9.863e-05,2]
[401812138,1768380232967,500.0,9.863e-05,2]
[401812139,1768380233032,500.0,9.863e-05,2]
[401812140,1768380233076,500.0,9.863e-05,2]
[401812141,1768380233137,500.0,9.863e-05,2]
[401812142,1768380233195,500.0,9.863e-05,2]
[401812143,1768380233245,518.59483133,9.863e-05,2]
[401812144,1768380243427,500.0,9.863e-05,2]
[401812145,1768380243488,500.0,9.863e-05,2]
[401812146,1768380243533,326.36749783,9.863e-05,2]
[401812147,1768380254115,157.0,8.3e-07,2]
[401812148,1768380255708,500.0,9.863e-05,2]
[401812149,1768380255748,500.0,9.863e-05,2]
[401812150,1768380255795,500.0,9.863e-05,2]
[401812151,1768380255837,362.91651112,9.863e-05,2]
[401812152,1768380255866,137.08348888,9.863e-05,2]
[401812153,1768380255911,500.0,9.863e-05,2]
[401812154,1768380255950,500.0,9.863e-05,2]
[401812155,1768380255987,500.0,9.863e-05,2]
[401812156,1768380256026,500.0,9.863e-05,2]
[401812157,1768380256221,512.48586104,9.863e-05,2]
[401812158,1768380256257,500.0,9.863e-05,2]
[401812159,1768380256297,500.0,9.863e-05,2]
[401812160,1768380263991,500.0,9.863e-05,2]
[401812161,1768380264047,290.80688898,9.863e-05,2]
[401812162,1768380276983,491.25,6.453e-05,2]
[401812163,1768380277382,982.51,6.76e-05,2]
[401812164,1768380277799,1473.76,7.067e-05,2]
[401812165,1768380278256,1965.02,7.375e-05,2]
[401812166,1768380278657,647.0937611,7.682e-05,2]
[401812167,1768380278693,1809.1762389,7.682e-05,2]
[401812168,1768380279232,2947.53,7.989e-05,2]
[401812169,1768380279468,3438.78,8.296e-05,2]
[401812170,1768380279886,1804.5237611,8.604e-05,2]
[401812171,1768380279917,2125.5062389,8.604e-05,2]
[401812172,1768380280467,4421.29,8.911e-05,2]
[401812173,1768380280766,3453.2137611,9.218e-05,2]
[401812174,1768380280795,1459.3262389,9.218e-05,2]
[401812175,1768380281912,8540.6837611,8.987e-05,2]
[401812176,1768380281942,63132.4521229,8.987e-05,2]
[401812177,1768380354079,565.38,5.905e-05,2]
[401812178,1768380354498,1130.76,6.186e-05,2]
[401812179,1768380354923,1696.15,6.467e-05,2]
[401812180,1768380355373,2261.53,6.748e-05,2]
[401812181,1768380355771,2826.91,7.029e-05,2]
[401812182,1768380356158,1519.28,7.311e-05,2]
[401812183,1768380356182,1873.01,7.311e-05,2]
[401812184,1768380356557,3957.67,7.592e-05,2]
[401812185,1768380356978,4169.33,7.873e-05,2]
[401812186,1768380357001,353.72,7.873e-05,2]
[401812187,1768380357407,5088.44,8.154e-05,2]
[401812188,1768380357834,4557.85,8.435e-05,2]
[401812189,1768380357859,1095.97,8.435e-05,2]
[401812191,1768380429838,514.05,6.007e-05,2]
[401812192,1768380430231,1028.1,6.293e-05,2]
[401812193,1768380431134,1542.15,6.579e-05,2]
[401812194,1768380431720,2056.19,6.865e-05,2]
[401812195,1768380431991,2570.24,7.151e-05,2]
[401812196,1768380432381,1193.31,7.437e-05,2]
[401812197,1768380432404,1890.98,7.437e-05,2]
[401812198,1768380432782,3598.34,7.723e-05,2]
[401812199,1768380433597,4112.39,8.009e-05,2]
[401812200,1768380434015,398.3,8.295e-05,2]
[401812201,1768380434038,4228.14,8.295e-05,2]
[401812202,1768380434421,5140.49,8.581e-05,2]
[401812204,1768380507016,435.25,6.652e-05,2]
[401812205,1768380507397,870.5,6.969e-05,2]
[401812206,1768380507790,1305.75,7.286e-05,2]
[401812207,1768380508193,1741.0,7.603e-05,2]
[401812208,1768380508601,2176.24,7.92e-05,2]
[401812209,1768380508995,2611.49,8.236e-05,2]
[401812210,1768380509388,859.78,8.553e-05,2]
[401812211,1768380509412,2186.96,8.553e-05,2]
[401812212,1768380509786,3481.99,8.87e-05,2]
[401812213,1768380510331,3917.24,9.187e-05,2]
[401812214,1768380553020,-4352.49,9.503e-05,2]
[401812215,1768380568154,-300.0,9.761e-05,2]
[401812216,1768380584262,376.93,7.262e-05,2]
[401812217,1768380584562,-660.96872732,9.761e-05,2]
[401812218,1768380584666,753.85,7.608e-05,2]
[401812219,1768380585098,1130.78,7.953e-05,2]
[401812220,1768380585525,1507.71,8.299e-05,2]
[401812221,1768380585915,1884.64,8.645e-05,2]
[401812222,1768380586452,2261.56,8.991e-05,2]
[401812223,1768380586720,1139.53254536,9.337e-05,2]
[401812224,1768380586744,1498.95745464,9.337e-05,2]
[401812225,1768380587111,3015.42,9.682e-05,2]
[401812226,1768380602114,-300.0,9.761e-05,2]
[401812227,1768380602448,498.51,5e-05,2]
[401812228,1768380602489,-300.0,9.761e-05,2]
[401812229,1768380602518,-300.0,9.761e-05,2]
[401812230,1768380602546,-1200.0,9.761e-05,2]
[401812231,1768380602769,498.51,5.5e-05,2]
[401812232,1768380602967,-300.0,9.761e-05,2]
[401812233,1768380603033,498.51,6e-05,2]
[401812234,1768380603285,498.51,6.5e-05,2]
[401812235,1768380603603,498.51,7.1e-05,2]
[401812236,1768380603913,498.51,7.6e-05,2]
[401812237,1768380604325,498.51,8.1e-05,2]
[401812238,1768380604637,498.51,8.6e-05,2]
[401812239,1768380604949,498.51,9.1e-05,2]
[401812240,1768380605145,-557.0,9.761e-05,2]
[401812241,1768380605487,-498.51,9.6e-05,2]
[401812242,1768380605786,-3699.96115972,9.762e-05,2]
[401812243,1768380608254,-10000.01,9.762e-05,2]
[401812244,1768380608360,-10000.01,9.762e-05,2]
[401812245,1768380608475,-10000.01,9.762e-05,2]
[401812246,1768380608655,-10000.01,9.762e-05,2]
[401812305,1768380637685,-964.96468085,9.762e-05,2]
[401812306,1768380637738,-3052.75231852,9.762e-05,2]
[401812307,1768380637749,-2435.17447835,9.762e-05,2]
[401812308,1768380637761,-6980.66110244,9.762e-05,2]
[401812309,1768380637772,-292084.62551563,9.762e-05,2]
[401812310,1768380637785,-538.362,9.762e-05,2]
[401812311,1768380637800,-422.28153138,9.762e-05,2]
[401812312,1768380637811,-649821.17721311,9.762e-05,2]
[401812313,1768380637820,-300.0,9.861e-05,2]
[401812314,1768380637829,-6991.49936946,9.861e-05,2]
[401812315,1768380637838,-6991.49936942,9.861e-05,2]
[401812316,1768380637846,-6991.49936942,9.862e-05,2]
[401812317,1768380637855,-6991.49936942,9.862e-05,2]
[401812318,1768380637864,-50000.0,9.862e-05,2]
[401812319,1768380637873,-540.90054673,9.862e-05,2]
[401812320,1768380637882,-390.95498126,9.862e-05,2]
[401812321,1768380637890,-500.0,9.862e-05,2]
[401812322,1768380637899,-500.0,9.862e-05,2]
[401812323,1768380637907,-500.0,9.862e-05,2]
[401812324,1768380637917,-500.0,9.862e-05,2]
[401812325,1768380637926,-500.0,9.862e-05,2]
[401812326,1768380637935,-500.0,9.862e-05,2]
[401812327,1768380637945,-626.76142596,9.862e-05,2]
[401812328,1768380637954,-500.0,9.862e-05,2]
[401812329,1768380637963,-500.0,9.862e-05,2]
[401812330,1768380637972,-500.0,9.862e-05,2]
[401812331,1768380637981,-500.0,9.862e-05,2]
[401812332,1768380637991,-500.0,9.862e-05,2]
[401812333,1768380638000,-500.0,9.862e-05,2]
[401812334,1768380638009,-500.0,9.862e-05,2]
[401812335,1768380638019,-500.0,9.862e-05,2]
[401812336,1768380638028,-500.0,9.862e-05,2]
[401812337,1768380638037,-500.0,9.862e-05,2]
[401812338,1768380638047,-500.0,9.862e-05,2]
[401812339,1768380638057,-500.0,9.862e-05,2]
[401812340,1768380638067,-465.73620783,9.862e-05,2]
[401812341,1768380638077,-440.89033888,9.862e-05,2]
[401812342,1768380638086,-500.0,9.862e-05,2]
[401812343,1768380638095,-500.0,9.862e-05,2]
[401812344,1768380638104,-480.0,9.862e-05,2]
[401812345,1768380638113,-500.0,9.862e-05,2]
[401812346,1768380638122,-500.0,9.862e-05,2]
[401812347,1768380638132,-500.0,9.862e-05,2]
[401812348,1768380638141,-293.55689546,9.862e-05,2]
[401812349,1768380638150,-500.0,9.862e-05,2]
[401812350,1768380638160,-500.0,9.862e-05,2]
[401812351,1768380638170,-570.0,9.862e-05,2]
[401812352,1768380638179,-500.0,9.862e-05,2]
[401812353,1768380638189,-500.0,9.862e-05,2]
[401812354,1768380638198,-500.0,9.862e-05,2]
[401812355,1768380638208,-500.0,9.862e-05,2]
[401812356,1768380638218,-500.0,9.862e-05,2]
[401812357,1768380638227,-500.0,9.862e-05,2]
[401812358,1768380638237,-500.0,9.862e-05,2]
[401812359,1768380638246,-500.0,9.862e-05,2]
[401812360,1768380638258,-500.0,9.862e-05,2]
[401812361,1768380638279,-500.0,9.862e-05,2]
[401812362,1768380638300,-500.0,9.862e-05,2]
[401812363,1768380638321,-500.0,9.862e-05,2]
[401812364,1768380638344,-500.0,9.862e-05,2]
[401812365,1768380638369,-500.0,9.862e-05,2]
[401812366,1768380638391,-500.0,9.862e-05,2]
[401812367,1768380638412,-6991.49936942,9.862e-05,2]
[401812368,1768380638437,-553.56482228,9.863e-05,2]
[401812369,1768380638462,-500.0,9.863e-05,2]
[401812370,1768380638483,-3423.19670921,0.0001,2]
[401812371,1768380638505,-151.0,0.0001,2]
[401812372,1768380638527,-192.85417081,0.0001,2]
[401812373,1768380638551,-3392.35,0.00010028,2]
[401812374,1768380638575,-300.0,0.0001006,2]
[401812375,1768380638597,-300.0,0.0001006,2]
[401812376,1768380638617,-300.0,0.0001006,2]
[401812377,1768380638638,-300.0,0.0001006,2]
[401812378,1768380638648,-300.0,0.0001006,2]
[401812379,1768380638657,-300.0,0.0001006,2]
[401812380,1768380638666,-300.0,0.0001006,2]
[401812381,1768380638675,-300.0,0.0001006,2]
[401812382,1768380638685,-300.0,0.0001006,2]
[401812383,1768380638695,-300.0,0.0001006,2]
[401812384,1768380638706,-300.0,0.0001006,2]
[401812385,1768380638716,-300.0,0.0001006,2]
[401812386,1768380638726,-300.0,0.0001006,2]
[401812387,1768380638735,-300.0,0.0001006,2]
[401812388,1768380638745,-300.0,0.0001006,2]
[401812389,1768380638755,-600.0,0.0001006,2]
[401812390,1768380638764,-151.88,0.0001006,2]
[401812391,1768380638774,-1022.67,0.000101,2]
[401812392,1768380638786,-498.51,0.000101,2]
[401812393,1768380638796,-500.0,0.00010137,2]
[401812394,1768380638805,-151.88,0.00010334,2]
[401812395,1768380638814,-3769.27,0.00010374,2]
[401812396,1768380638823,-500.0,0.00010411,2]
[401812397,1768380638832,-1022.67,0.000106,2]
[401812398,1768380638842,-498.51,0.000106,2]
[401812399,1768380638851,-151.89,0.00010608,2]
[401812400,1768380638860,-12181.30128937,0.00010658,2]
[401812401,1768380638870,-500.0,0.00010685,2]
[401812402,1768380638880,-186.0,0.00010737,2]
[401812403,1768380638890,-420.0,0.00010737,2]
[401812404,1768380638899,-1680.0,0.00010737,2]
[401812405,1768380638909,-420.0,0.00010737,2]
[401812406,1768380638918,-366.2480884,0.00010959,2]
[401812407,1768380638928,-946.8489754,0.00010959,2]
[401812408,1768380638939,-500.0,0.00010959,2]
[401812409,1768380638950,-1500.0,0.00010959,2]
[401812410,1768380638972,-720.0,0.00011066,2]
[401812411,1768380638993,-1022.67,0.000112,2]
[401812412,1768380639007,-498.51,0.000112,2]
[401812413,1768380639017,-500.0,0.00011233,2]
[401812414,1768380639027,-151.0,0.000114,2]
[401812415,1768380639037,-151.0,0.000115,2]
[401812416,1768380639048,-500.0,0.00011507,2]
[401812417,1768380639058,-151.0,0.000116,2]